bitfinex/quotes_SOLUSD_20251001
["timestamp","ask_amount","ask_price","bid_price","bid_amount"]
[1759335608904,7.26233572,220.8,220.73,21.47]
[1759335609492,0.71,220.79,220.73,21.47]
[1759335610096,0.71,220.79,220.74,4.53021654]
[1759335610300,5.2392206,220.79,220.74,5.20021654]
[1759335611397,2.73331144,220.78,220.73,20.8]
[1759335611597,2.73331144,220.77,220.72,31.96]
[1759335611906,2.02331144,220.74,220.73,31.96]
[1759335612080,4.53042178,220.73,220.64,11.3225818]
[1759335612280,2.02331144,220.66,220.63,0.67]
[1759335612497,0.71,220.68,220.61,0.67]
[1759335612705,0.71,220.68,220.62,31.94]
[1759335612899,2.02331144,220.66,220.62,31.94]
[1759335613103,2.02331144,220.65,220.62,31.94]
[1759335613308,2.73331144,220.64,220.58,35.34]
[1759335613605,2.02331144,220.64,220.62,20.8]
[1759335613803,2.73331144,220.63,220.53,2.02331144]
[1759335613982,0.71,220.63,220.57,0.67]
[1759335614306,20.8,220.69,220.58,31.94]
[1759335614307,2.02331144,220.62,220.58,31.94]
[1759335614512,2.02331144,220.63,220.59,0.67]
[1759335614692,4.53229096,220.64,220.6,0.67]
[1759335614896,2.02331144,220.63,220.58,36.47348132]
[1759335615102,2.02331144,220.62,220.58,32.61]
[1759335615304,2.73331144,220.62,220.58,31.94]
[1759335616094,2.73331144,220.62,220.58,32.61]
[1759335616315,2.02331144,220.59,220.58,31.94]
[1759335616687,2.73331144,220.61,220.58,31.94]
[1759335616886,6.55578662,220.63,220.59,0.67]
[1759335617085,4.53247518,220.63,220.59,0.67]
[1759335617396,7.26578662,220.63,220.58,31.94]
[1759335617596,7.26578662,220.63,220.58,32.61]
[1759335618199,7.26578662,220.63,220.58,31.94]
[1759335618519,2.02331144,220.62,220.58,31.94]
[1759335618725,2.02331144,220.6,220.55,0.67]
[1759335618898,2.02331144,220.6,220.52,0.67]
[1759335618899,2.02331144,220.57,220.52,0.67]
[1759335619097,2.02331144,220.55,220.5,12.79]
[1759335619413,2.02331144,220.55,220.51,0.67]
[1759335619623,2.02331144,220.56,220.52,0.67]
[1759335619803,2.73331144,220.56,220.52,0.67]
[1759335620010,6.55743068,220.55,220.5,12.78]
[1759335620223,7.23743068,220.55,220.5,12.78]
[1759335620428,0.68,220.54,220.5,12.12]
[1759335620601,6.55743068,220.55,220.5,12.78]
[1759335620920,4.53411924,220.55,220.51,0.66]
[1759335621124,0.68,220.56,220.51,0.66]
[1759335621423,5.21395313,220.56,220.51,0.66]
[1759335621595,2.02331144,220.55,220.51,0.66]
[1759335621911,2.70331144,220.54,220.5,12.12]
[1759335622529,2.70331144,220.54,220.48,5.39536647]
[1759335622530,0.68,220.53,220.48,0.2]
[1759335622695,2.02331144,220.52,220.49,0.66]
[1759335622891,5.21435761,220.54,220.49,0.66]
[1759335623096,7.23766905,220.54,220.49,0.66]
[1759335623299,0.68,220.53,220.49,0.66]
[1759335623611,2.02331144,220.54,220.5,0.69]
[1759335623802,2.73331144,220.54,220.5,0.69]
[1759335624413,6.55756378,220.55,220.5,0.69]
[1759335624616,7.26756378,220.55,220.5,0.69]
[1759335625013,0.71,220.54,220.49,4.53534691]
[1759335625220,0.71,220.54,220.48,32.16]
[1759335625524,0.71,220.54,220.49,0.69]
[1759335627118,2.73331144,220.54,220.49,0.69]
[1759335627318,0.71,220.54,220.49,5.22527524]
[1759335627518,0.71,220.57,220.5,0.69]
[1759335627710,0.28432314,220.58,220.5,0.69]
[1759335628016,2.02331144,220.57,220.5,0.69]
[1759335628516,7.26705619,220.57,220.51,4.53494172]
[1759335628905,2.02331144,220.55,220.5,0.69]
[1759335629103,2.73331144,220.54,220.5,0.69]
[1759335629534,2.02331144,220.54,220.49,4.53524181]
[1759335629700,2.73331144,220.54,220.49,5.22524181]
[1759335630202,2.02331144,220.54,220.49,4.53524181]
[1759335630403,2.02331144,220.54,220.5,32.65]
[1759335630802,5.24410728,220.56,220.5,32.65]
[1759335631009,2.02331144,220.54,220.5,32.65]
[1759335632015,5.24391974,220.56,220.51,0.69]
[1759335632211,2.02331144,220.54,220.51,0.69]
[1759335632419,0.71,220.55,220.51,0.69]
[1759335632627,2.02331144,220.54,220.5,36.49511587]
[1759335632924,2.02331144,220.54,220.5,37.18511587]
[1759335633123,0.71,220.55,220.51,0.69]
[1759335633321,14.41704927,220.6,220.52,0.69]
[1759335633527,2.02331144,220.59,220.52,0.69]
[1759335633711,2.73331144,220.59,220.52,0.69]
[1759335633920,7.26675783,220.59,220.53,4.53453044]
[1759335634298,2.02331144,220.58,220.53,4.53453044]
[1759335634498,2.73331144,220.58,220.53,5.22453044]
[1759335635121,16.4402478,220.6,220.51,4.53494172]
[1759335635329,17.1502478,220.6,220.54,0.69]
[1759335635827,17.1502478,220.6,220.51,4.53494172]
[1759335636031,0.71,220.59,220.52,0.69]
[1759335636329,5.24335842,220.59,220.53,4.53453044]
[1759335636536,0.71,220.59,220.53,5.22453044]
[1759335636707,5.24331419,220.59,220.53,5.22453044]
[1759335637718,0.71,220.59,220.53,5.22453044]
[1759335638129,5.24335367,220.59,220.53,5.22453044]
[1759335638635,0.71,220.59,220.53,5.22453044]
[1759335640436,14.41693905,220.6,220.54,21.49]
[1759335640437,9.88382618,220.6,220.54,21.49]
[1759335640614,9.88382618,220.6,220.55,32.65]
[1759335640819,9.88382618,220.6,220.56,0.69]
[1759335641023,9.88382618,220.6,220.57,0.69]
[1759335642039,9.88382618,220.6,220.55,32.65]
[1759335642243,0.71,220.59,220.55,32.65]
[1759335642744,0.71,220.59,220.55,36.49395658]
[1759335642941,0.71,220.59,220.56,31.96]
[1759335643111,14.41703993,220.6,220.56,31.96]
[1759335643112,0.71,220.58,220.56,31.96]
[1759335644821,16.44035137,220.6,220.56,31.96]
[1759335645130,2.02331144,220.57,220.48,0.2]
[1759335645327,2.02331144,220.55,220.49,31.96]
[1759335645520,0.71,220.54,220.49,31.96]
[1759335645722,0.71,220.54,220.49,32.65]
[1759335645931,2.02331144,220.55,220.5,0.69]
[1759335646107,0.71,220.56,220.51,0.69]
[1759335646308,14.41703993,220.6,220.52,0.69]
[1759335646513,15.12703993,220.6,220.53,31.96]
[1759335646716,9.88382618,220.6,220.56,20.8]
[1759335646938,9.88382618,220.6,220.56,21.49]
[1759335647121,9.88382618,220.6,220.56,53.45]
[1759335647122,10.59382618,220.6,220.56,53.45]
[1759335647514,10.59382618,220.6,220.56,57.98382378]
[1759335647732,9.88382618,220.6,220.56,52.76]
[1759335647914,10.59382618,220.6,220.56,52.76]
[1759335649146,10.59382618,220.6,220.56,53.45]
[1759335650026,9.88382618,220.6,220.57,0.69]
[1759335650934,10.59382618,220.6,220.56,57.29380903]
[1759335652229,9.88382618,220.6,220.56,57.29380903]
[1759335652416,10.59382618,220.6,220.56,57.98380903]
[1759335652619,9.88382618,220.6,220.57,0.69]
[1759335652936,9.88382618,220.6,220.56,57.98380903]
[1759335653119,9.88382618,220.6,220.57,0.69]
[1759335654125,9.88382618,220.6,220.57,5.22366402]
[1759335654341,9.88382618,220.6,220.57,4.53366402]
[1759335655148,9.88382618,220.6,220.56,57.29391203]
[1759335655437,9.88382618,220.6,220.57,0.68]
[1759335655841,9.88382618,220.6,220.56,57.29391203]
[1759335656320,9.88382618,220.6,220.56,57.97391203]
[1759335656517,9.88382618,220.6,220.57,0.68]
[1759335657125,9.88382618,220.6,220.56,57.29391203]
[1759335657447,9.88382618,220.6,220.57,5.21357035]
[1759335657631,9.88382618,220.6,220.57,4.53357035]
[1759335658036,10.59382618,220.6,220.57,4.53357035]
[1759335658632,9.88382618,220.6,220.57,4.53357035]
[1759335659528,10.59382618,220.6,220.57,4.53357035]
[1759335660623,0.71,220.59,220.57,4.53357035]
[1759335660824,9.88382618,220.6,220.57,4.53357035]
[1759335661841,10.59382618,220.6,220.57,4.53357035]
[1759335663731,9.88382618,220.6,220.57,5.21357035]
[1759335664161,9.88382618,220.6,220.57,4.53357035]
[1759335664337,10.59382618,220.6,220.57,4.53357035]
[1759335667737,3.04047427,220.65,220.58,0.68]
[1759335667937,0.71,220.66,220.59,31.94]
[1759335668143,0.71,220.66,220.6,0.68]
[1759335668353,0.71,220.66,220.61,4.53288608]
[1759335668647,0.71,220.65,220.62,31.94]
[1759335668829,0.71,220.64,220.62,31.94]
[1759335669558,0.71,220.63,220.62,31.94]
[1759335670836,3.87465939,220.63,220.59,20.8]
[1759335671044,0.28432314,220.67,220.6,31.94]
[1759335671045,3.87465939,220.62,220.6,31.94]
[1759335671249,3.16465939,220.62,220.61,31.94]
[1759335671756,3.87465939,220.62,220.61,31.94]
[1759335672058,8.40734001,220.62,220.61,31.94]
[1759335672752,3.87465939,220.62,220.61,31.94]
[1759335672948,0.71,220.62,220.61,31.94]
[1759335673353,3.87465939,220.62,220.61,31.94]
[1759335673565,5.24268062,220.62,220.61,31.94]
[1759335674057,0.71,220.62,220.61,31.94]
[1759335675155,3.16465939,220.63,220.61,31.94]
[1759335675156,4.53251473,220.63,220.61,31.94]
[1759335675356,4.53185896,220.66,220.61,31.94]
[1759335675662,3.87465939,220.64,220.61,31.94]
[1759335675836,0.71,220.63,220.61,31.94]
[1759335676232,0.71,220.62,220.61,31.94]
[1759335678646,5.24268062,220.62,220.61,31.94]
[1759335681139,0.71,220.62,220.61,31.94]
[1759335681754,4.5324545,220.64,220.61,31.94]
[1759335681960,3.87465939,220.63,220.61,31.94]
[1759335682238,0.7,220.62,220.61,31.94]
[1759335682959,3.86465939,220.62,220.61,31.94]
[1759335684966,3.86465939,220.62,220.6,31.92]
[1759335685558,0.71,220.64,220.6,31.92]
[1759335685861,0.71,220.63,220.6,31.92]
[1759335686364,3.16465939,220.64,220.6,37.15302065]
[1759335686549,0.71,220.65,220.61,0.7]
[1759335686754,0.71,220.67,220.62,0.7]
[1759335686959,3.75047427,220.69,220.63,32.62]
[1759335687147,0.71,220.69,220.64,0.7]
[1759335687351,21.29046615,220.71,220.65,0.7]
[1759335687570,18.24999188,220.71,220.66,31.92]
[1759335687867,0.71,220.7,220.66,31.92]
[1759335688072,9.84448984,220.71,220.66,31.92]
[1759335688365,10.55448984,220.71,220.66,32.62]
[1759335688569,9.84448984,220.71,220.66,32.62]
[1759335688754,0.71,220.7,220.66,32.62]
[1759335689153,0.71,220.69,220.66,31.92]
[1759335689756,18.24999949,220.71,220.66,37.15178122]
[1759335690074,0.71,220.7,220.66,36.45178122]
[1759335690264,0.71,220.7,220.66,37.15178122]
[1759335690973,0.71,220.7,220.66,36.45178122]
[1759335691167,0.71,220.7,220.66,37.15178122]
[1759335692968,9.84448984,220.71,220.66,36.45178122]
[1759335693183,9.84448984,220.71,220.67,0.7]
[1759335693479,10.55448984,220.71,220.67,0.7]
[1759335694278,9.84448984,220.71,220.67,4.53160678]
[1759335694591,3.87465939,220.7,220.66,31.92]
[1759335694765,9.84448984,220.71,220.63,10.54448984]
[1759335694766,3.16465939,220.68,220.63,10.54448984]
[1759335695072,0.71,220.67,220.64,31.92]
[1759335695374,3.16465939,220.68,220.64,31.92]
[1759335695562,0.71,220.67,220.64,31.92]
[1759335696446,7.69621314,220.68,220.64,31.92]
[1759335696651,8.40621314,220.68,220.64,31.92]
[1759335697073,3.16465939,220.65,220.61,20.8]
[1759335697273,3.16465939,220.62,220.61,20.8]
[1759335697470,3.16465939,220.62,220.61,52.7]
[1759335697673,3.87465939,220.62,220.56,0.7]
[1759335697877,3.16465939,220.6,220.57,31.9]
[1759335698249,3.87465939,220.6,220.57,31.9]
[1759335698787,3.16465939,220.59,220.57,31.9]
[1759335699080,7.69781298,220.6,220.57,32.6]
[1759335699765,4.53315359,220.6,220.57,31.9]
[1759335699960,3.16465939,220.6,220.57,31.9]
[1759335700276,7.69754547,220.61,220.57,32.6]
[1759335700465,3.16465939,220.6,220.57,31.9]
[1759335700667,0.71,220.59,220.57,31.9]
[1759335700868,3.87465939,220.59,220.57,31.9]
[1759335701374,4.53319372,220.6,220.57,31.9]
[1759335701575,3.16465939,220.59,220.57,31.9]
[1759335703076,7.69785311,220.6,220.57,31.9]
[1759335703288,7.69785311,220.6,220.57,32.6]
[1759335703469,3.16465939,220.6,220.57,32.6]
[1759335703786,5.24185896,220.66,220.58,0.7]
[1759335703983,3.16465939,220.64,220.58,0.7]
[1759335704860,4.53226976,220.64,220.58,5.233315]
[1759335705163,0.71,220.65,220.59,0.7]
[1759335705466,3.16465939,220.63,220.6,31.9]
[1759335705673,3.16465939,220.62,220.6,31.9]
[1759335706762,3.16465939,220.61,220.6,31.9]
[1759335707163,7.69743846,220.62,220.6,31.9]
[1759335707392,8.40743846,220.62,220.6,31.9]
[1759335707698,7.69743846,220.62,220.6,31.9]
[1759335707985,8.40743846,220.62,220.61,31.9]
[1759335709996,7.69743846,220.62,220.61,31.9]
[1759335712594,8.40743846,220.62,220.61,31.9]
[1759335712896,3.16465939,220.62,220.61,31.9]
[1759335713596,3.16465939,220.63,220.61,31.9]
[1759335714185,3.88465939,220.63,220.61,31.9]
[1759335714479,3.16465939,220.62,220.61,31.9]
[1759335714687,5.2525174,220.63,220.61,31.9]
[1759335714898,3.16465939,220.62,220.61,31.9]
[1759335716873,8.41734001,220.62,220.61,31.9]
[1759335717076,7.69734001,220.62,220.61,31.9]
[1759335717879,8.41734001,220.62,220.61,31.9]
[1759335718084,4.53247512,220.64,220.61,31.9]
[1759335718282,3.16465939,220.63,220.61,31.9]
[1759335718497,3.88465939,220.63,220.61,31.9]
[1759335718797,3.16465939,220.62,220.61,31.9]
[1759335719228,4.53250671,220.63,220.61,31.9]
[1759335719372,5.25229696,220.64,220.61,31.9]
[1759335719577,3.16465939,220.62,220.61,31.9]
[1759335720489,4.53229696,220.64,220.61,31.9]
[1759335720684,3.16465939,220.63,220.61,31.9]
[1759335721102,7.69716918,220.63,220.61,31.9]
[1759335721611,3.16465939,220.64,220.61,31.9]
[1759335721909,3.16465939,220.65,220.62,0.67]
[1759335722515,10.37514758,220.67,220.62,0.67]
[1759335722803,13.53980697,220.67,220.63,0.67]
[1759335722973,13.53980697,220.67,220.64,31.9]
[1759335723179,14.25980697,220.67,220.64,31.9]
[1759335723484,3.16465939,220.66,220.64,31.9]
[1759335724391,13.53980697,220.67,220.65,0.67]
[1759335724704,10.37514758,220.67,220.64,31.9]
[1759335724906,3.16465939,220.67,220.64,32.57]
[1759335725107,3.16465939,220.67,220.65,0.67]
[1759335725608,4.53166514,220.67,220.64,31.9]
[1759335725917,7.69632453,220.67,220.64,32.57]
[1759335726277,6.55625132,220.67,220.64,32.57]
[1759335727003,4.53144825,220.68,220.64,32.57]
[1759335727211,2.02458618,220.67,220.64,32.57]
[1759335727383,2.74458618,220.67,220.64,31.9]
[1759335727590,2.02458618,220.67,220.64,31.9]
[1759335727895,4.53144825,220.68,220.64,31.9]
[1759335727896,2.74458618,220.66,220.64,31.9]
[1759335728101,5.25144825,220.68,220.64,31.9]
[1759335728411,2.02458618,220.66,220.64,31.9]
[1759335729603,6.55644787,220.66,220.64,31.9]
[1759335729810,7.27644787,220.66,220.64,31.9]
[1759335730112,2.02458618,220.65,220.64,31.9]
[1759335730996,2.02458618,220.65,220.62,5.20266535]
[1759335731200,2.02458618,220.65,220.64,31.88]
[1759335731798,2.02458618,220.66,220.64,31.88]
[1759335732495,3.76047427,220.7,220.65,0.67]
[1759335732704,2.02458618,220.69,220.66,0.67]
[1759335733010,0.72,220.7,220.67,0.67]
[1759335733011,6.5557279,220.7,220.67,0.67]
[1759335733810,6.5557279,220.7,220.67,32.55]
[1759335733995,6.5557279,220.7,220.67,31.88]
[1759335733996,7.2757279,220.7,220.67,31.88]
[1759335734411,6.5557279,220.7,220.67,31.88]
[1759335734711,6.5557279,220.7,220.67,32.55]
[1759335735182,2.02458618,220.7,220.67,32.55]
[1759335735385,2.02458618,220.7,220.67,31.88]
[1759335735593,2.74458618,220.7,220.67,31.88]
[1759335735798,2.74458618,220.7,220.59,20.8]
[1759335735799,2.02458618,220.68,220.61,0.67]
[1759335735990,13.92346811,220.74,220.62,31.88]
[1759335735991,2.02458618,220.63,220.62,31.88]
[1759335736194,2.02458618,220.64,220.62,32.55]
[1759335736397,10.87647521,220.7,220.62,31.88]
[1759335736591,2.02458618,220.63,220.62,31.88]
[1759335737214,2.74458618,220.63,220.62,31.88]
[1759335737601,2.02458618,220.63,220.62,31.88]
[1759335739010,4.53208994,220.65,220.62,31.88]
[1759335739219,2.02458618,220.64,220.62,31.88]
[1759335739401,2.02458618,220.63,220.62,31.88]
[1759335740415,6.55706136,220.63,220.62,31.88]
[1759335740918,2.02458618,220.63,220.62,31.88]
[1759335741128,0.71,220.64,220.62,31.88]
[1759335741129,5.24235691,220.64,220.62,31.88]
[1759335741309,2.02458618,220.63,220.62,31.88]
[1759335741507,2.02458618,220.63,220.56,34.41686675]
[1759335741710,0.71,220.63,220.58,0.69]
[1759335741902,2.02458618,220.61,220.59,0.69]
[1759335743112,6.55733892,220.62,220.59,0.69]
[1759335743427,2.02458618,220.6,220.57,31.88]
[1759335743611,2.69458618,220.61,220.57,32.56]
[1759335743807,4.53275274,220.62,220.57,31.88]
[1759335744012,2.02458618,220.61,220.58,0.68]
[1759335744211,2.02458618,220.61,220.59,0.68]
[1759335744530,2.02458618,220.61,220.57,32.56]
[1759335744702,2.02458618,220.61,220.58,0.68]
[1759335744904,4.53275274,220.62,220.58,0.68]
[1759335745233,2.02458618,220.61,220.58,0.68]
[1759335745402,4.53275274,220.62,220.59,0.68]
[1759335745603,2.02458618,220.61,220.57,37.09370777]
[1759335746203,2.02458618,220.61,220.58,0.68]
[1759335747219,6.55750928,220.61,220.58,0.68]
[1759335747602,6.55750928,220.61,220.57,31.88]
[1759335747900,6.55750928,220.61,220.57,32.56]
[1759335748832,0.67,220.61,220.57,31.88]
[1759335748996,2.02458618,220.58,220.48,79.3]
[1759335749199,2.02458618,220.57,220.5,4.53206435]
[1759335749414,2.02458618,220.57,220.51,0.68]
[1759335749731,2.02458618,220.57,220.52,31.88]
[1759335749901,0.67,220.59,220.53,0.68]
[1759335750103,2.02458618,220.57,220.53,0.68]
[1759335750326,2.02458618,220.56,220.53,0.68]
[1759335750536,2.02458618,220.56,220.52,31.88]
[1759335750700,2.02458618,220.56,220.53,0.68]
[1759335751300,6.55833511,220.57,220.53,0.68]
[1759335751496,7.22833511,220.57,220.53,0.68]
[1759335751701,5.20374893,220.57,220.53,0.68]
[1759335751933,7.22833511,220.57,220.53,0.68]
[1759335752741,7.22833511,220.57,220.52,32.56]
[1759335753026,2.02458618,220.56,220.52,32.56]
[1759335753711,2.69458618,220.56,220.52,32.56]
[1759335754426,2.02458618,220.56,220.53,0.68]
[1759335755127,2.69458618,220.55,220.52,31.88]
[1759335755311,2.69458618,220.54,220.52,31.88]
[1759335755512,2.69458618,220.53,220.52,31.88]
[1759335756625,7.22911662,220.53,220.52,31.88]
[1759335757614,13.39074675,220.54,220.52,31.88]
[1759335757823,2.02458618,220.53,220.52,31.88]
[1759335758241,2.69458618,220.53,220.52,31.88]
[1759335758545,2.02458618,220.53,220.52,31.88]
[1759335758838,4.53441053,220.54,220.52,31.88]
[1759335759018,2.02458618,220.53,220.52,31.88]
[1759335760317,6.55899671,220.54,220.52,31.88]
[1759335762542,13.77586057,220.56,220.52,32.56]
[1759335762757,2.02458618,220.53,220.52,31.88]
[1759335763215,2.69458618,220.53,220.48,0.2]
[1759335763414,2.02458618,220.51,220.48,0.2]
[1759335763914,2.02458618,220.52,220.49,0.68]
[1759335764535,6.55936861,220.52,220.49,0.68]
[1759335765131,6.55936861,220.52,220.48,0.2]
[1759335765307,6.55936861,220.52,220.48,0.88]
[1759335765502,6.55936861,220.52,220.49,0.68]
[1759335767556,2.02458618,220.5,220.48,0.2]
[1759335767713,2.02458618,220.49,220.48,0.2]
[1759335767915,2.69458618,220.49,220.48,0.2]
[1759335769443,7.22993925,220.49,220.48,0.2]
[1759335772053,18.10641446,220.49,220.48,0.2]
[1759335775865,4.53535307,220.49,220.48,0.2]
[1759335776184,6.55993925,220.49,220.48,0.2]
[1759335779684,7.27993925,220.49,220.48,0.2]
[1759335781469,6.55993925,220.49,220.48,0.2]
[1759335782277,7.27993925,220.49,220.48,0.2]
[1759335782476,6.55993925,220.49,220.48,0.2]
[1759335783272,7.27993925,220.49,220.48,0.2]
[1759335785580,18.15641446,220.49,220.48,0.2]
[1759335786882,16.13182828,220.49,220.48,0.2]
[1759335787085,18.15641446,220.49,220.48,0.2]
[1759335788371,18.58137279,220.49,220.48,0.2]
[1759335788574,4.53535307,220.49,220.48,0.2]
[1759335788872,7.70489758,220.49,220.48,0.2]
[1759335789385,4.53535307,220.49,220.48,0.2]
[1759335789700,3.03648127,220.54,220.48,5.40552016]
[1759335789900,11.33103545,220.64,220.51,20.8]
[1759335790067,11.33103545,220.64,220.52,0.67]
[1759335790389,3.16954451,220.62,220.52,0.67]
[1759335790694,3.16954451,220.57,220.52,32.55]
[1759335790903,3.16954451,220.56,220.52,0.67]
[1759335791105,3.16954451,220.56,220.53,0.67]
[1759335791986,7.70348996,220.56,220.53,0.67]
[1759335792886,3.16954451,220.55,220.51,52.68]
[1759335793072,3.16954451,220.55,220.48,52.88]
[1759335793073,3.16954451,220.53,220.48,52.88]
[1759335793397,5.25422399,220.55,220.49,0.67]
[1759335793600,3.16954451,220.54,220.49,0.67]
[1759335793777,8.4237685,220.55,220.49,0.67]
[1759335793975,8.4237685,220.55,220.49,5.20534927]
[1759335794177,8.4237685,220.55,220.5,0.67]
[1759335794398,3.16954451,220.53,220.48,53.55]
[1759335794605,3.88954451,220.53,220.49,0.67]
[1759335795468,8.42415835,220.53,220.49,0.67]
[1759335795669,3.88954451,220.53,220.49,0.67]
[1759335795873,3.16954451,220.53,220.48,52.88]
[1759335796070,3.88954451,220.53,220.48,53.55]
[1759335796273,3.88954451,220.53,220.49,0.67]
[1759335796769,8.42408072,220.53,220.49,0.67]
[1759335796980,7.70408072,220.53,220.49,0.67]
[1759335797298,3.16954451,220.51,220.48,0.2]
[1759335797471,0.72,220.52,220.48,0.2]
[1759335797472,3.16954451,220.49,220.48,0.2]
[1759335797672,3.88954451,220.49,220.48,0.2]
[1759335798567,8.42489758,220.49,220.48,0.2]
[1759335799493,7.70489758,220.49,220.48,0.2]
[1759335799699,3.16954451,220.5,220.48,0.2]
[1759335799870,3.86954451,220.5,220.48,0.2]
[1759335800894,8.40476624,220.5,220.48,0.2]
[1759335801892,3.86954451,220.49,220.48,0.2]
[1759335802394,14.74601972,220.49,220.48,0.2]
[1759335803181,19.28137279,220.49,220.48,0.2]
[1759335808500,16.11182828,220.49,220.48,0.2]
[1759335808801,19.28137279,220.49,220.48,0.2]
[1759335810296,19.23137279,220.49,220.48,0.2]
[1759335810602,18.58137279,220.49,220.48,0.2]
[1759335810989,19.23137279,220.49,220.48,0.2]
[1759335811788,15.41182828,220.49,220.48,0.2]
[1759335811984,7.70489758,220.49,220.48,0.2]
[1759335812182,8.35489758,220.49,220.48,0.2]
[1759335812997,19.23137279,220.49,220.48,0.2]
[1759335813806,7.70489758,220.49,220.48,0.2]
[1759335814701,8.35489758,220.49,220.48,0.2]
[1759335818906,4.81967621,220.49,220.48,0.2]
[1759335819210,7.98922072,220.49,220.48,0.2]
[1759335819594,8.63922072,220.49,220.48,0.2]
[1759335821183,8.63922072,220.49,220.48,1e-08]
[1759335823311,19.51569593,220.49,220.48,1e-08]
[1759335823806,16.34615142,220.49,220.48,1e-08]
[1759335824012,51.37569593,220.49,220.48,1e-08]
[1759335824187,54.4142133,220.49,220.48,1e-08]
[1759335826401,20.8,220.46,220.43,0.2]
[1759335826602,14.04601972,220.44,220.43,0.2]
[1759335827191,18.5824015,220.44,220.43,0.2]
[1759335829409,18.5824015,220.44,220.43,0.86]
[1759335829410,4.82070492,220.44,220.43,0.86]
[1759335829791,7.99024943,220.44,220.43,0.86]
[1759335830596,4.53638178,220.44,220.43,0.86]
[1759335832294,3.3303472,220.48,220.43,0.86]
[1759335832295,6.21556857,220.48,220.43,0.86]
[1759335832498,4.53555878,220.48,220.44,0.66]
[1759335833612,15.87416703,220.49,220.44,0.66]
[1759335833817,3.16954451,220.48,220.45,0.69]
[1759335834016,3.16954451,220.48,220.46,0.69]
[1759335834322,3.16954451,220.48,220.47,0.69]
[1759335834707,3.16954451,220.48,220.44,0.69]
[1759335835008,3.16954451,220.48,220.45,0.69]
[1759335835009,4.5357645,220.47,220.45,0.69]
[1759335835207,4.5357645,220.47,220.43,0.2]
[1759335835208,7.70530901,220.47,220.43,0.2]
[1759335835517,7.70530901,220.47,220.45,0.69]
[1759335835811,7.70530901,220.47,220.43,0.89]
[1759335836024,7.70530901,220.47,220.44,0.69]
[1759335836317,7.70530901,220.47,220.43,0.2]
[1759335836490,8.35530901,220.47,220.43,0.2]
[1759335836696,3.16954451,220.45,220.43,0.2]
[1759335837221,4.53638178,220.44,220.43,0.2]
[1759335837606,4.53638178,220.44,220.43,0.89]
[1759335838317,7.70592629,220.44,220.43,0.2]
[1759335839601,5.18638178,220.44,220.43,0.2]
[1759335839806,8.35592629,220.44,220.43,0.2]
[1759335840404,8.64024943,220.44,220.43,0.2]
[1759335842331,7.99024943,220.44,220.43,0.2]
[1759335844134,8.64024943,220.44,220.43,0.2]
[1759335844739,19.51672464,220.44,220.43,0.2]
[1759335847424,51.37672464,220.44,220.43,0.2]
[1759335847631,54.4227487,220.44,220.43,0.2]
[1759335848252,53.28284093,220.44,220.43,0.2]
[1759335849824,3.04602406,220.44,220.43,0.2]
[1759335850021,3.04602406,220.49,220.43,0.89]
[1759335850327,2.02963674,220.47,220.43,0.89]
[1759335850649,2.02963674,220.46,220.43,0.89]
[1759335850848,4.53558832,220.48,220.44,0.69]
[1759335851045,2.02963674,220.47,220.44,0.69]
[1759335851230,2.02963674,220.46,220.44,0.69]
[1759335851547,2.02963674,220.45,220.43,0.2]